[Event "Titled Tuesday Blitz June 20 Late 2023"]
[White "Mortazavi, Ali"]
[Black "Buscar, Michael"]
[WhiteFideId "401323"]
[BlackFideId "2603616"]
[WhiteElo "2339"]
[BlackElo "2010"]
[Result "1-0"]
[Round "1"]
[TimeControl "180+2"]
[Date "2023.06.20"]
[WhiteClock "0:00:17"]
[BlackClock "0:00:00"]
[Board "131"]

1. Nf3 {[%clk 0:02:59]}  d5 {[%clk 0:02:59]} 2. g3 {[%clk 0:03:00]}  Nf6 {[%clk 0:02:57]} 3. Bg2 {[%clk 0:03:00]}  e6 {[%clk 0:02:58]} 4. O-O {[%clk 0:03:01]}  Be7 {[%clk 0:02:58]} 5. d3 {[%clk 0:03:01]}  O-O {[%clk 0:02:59]} 6. Nbd2 {[%clk 0:03:02]}  c6 {[%clk 0:02:57]} 7. e4 {[%clk 0:03:02]}  Nbd7 {[%clk 0:02:57]} 8. e5 {[%clk 0:03:03]}  Ne8 {[%clk 0:02:56]} 9. Re1 {[%clk 0:03:04]}  f5 {[%clk 0:02:43]} 10. exf6 {[%clk 0:03:03]}  Ndxf6 {[%clk 0:02:43]} 11. Ne5 {[%clk 0:02:59]}  Bd6 {[%clk 0:02:39]} 12. Ndf3 {[%clk 0:03:00]}  Nd7 {[%clk 0:02:37]} 13. Nxd7 {[%clk 0:02:45]}  Bxd7 {[%clk 0:02:35]} 14. d4 {[%clk 0:02:44]}  Qc7 {[%clk 0:02:30]} 15. Ne5 {[%clk 0:02:43]}  Nf6 {[%clk 0:02:27]} 16. c3 {[%clk 0:02:42]}  Rae8 {[%clk 0:02:27]} 17. h3 {[%clk 0:02:37]}  Bc8 {[%clk 0:02:24]} 18. Bf4 {[%clk 0:02:31]}  Nd7 {[%clk 0:02:22]} 19. Nxd7 {[%clk 0:02:29]}  Bxd7 {[%clk 0:02:15]} 20. Bxd6 {[%clk 0:02:27]}  Qxd6 {[%clk 0:02:15]} 21. f4 {[%clk 0:02:23]}  c5 {[%clk 0:02:11]} 22. h4 {[%clk 0:02:20]}  Re7 {[%clk 0:02:06]} 23. Kh2 {[%clk 0:02:19]}  Be8 {[%clk 0:02:05]} 24. Qd2 {[%clk 0:02:15]}  Bg6 {[%clk 0:02:01]} 25. Re5 {[%clk 0:02:15]}  Bf5 {[%clk 0:01:54]} 26. Rae1 {[%clk 0:02:15]}  Rc7 {[%clk 0:01:54]} 27. dxc5 {[%clk 0:01:51]}  Qxc5 {[%clk 0:01:47]} 28. Bh3 {[%clk 0:01:46]}  Rd7 {[%clk 0:01:37]} 29. Rd1 {[%clk 0:01:30]}  Bxh3 {[%clk 0:01:34]} 30. Kxh3 {[%clk 0:01:30]}  Rf6 {[%clk 0:01:30]} 31. Qd4 {[%clk 0:01:30]}  Qxd4 {[%clk 0:01:27]} 32. Rxd4 {[%clk 0:01:30]}  Kf7 {[%clk 0:01:14]} 33. Kg4 {[%clk 0:01:26]}  Rg6+ {[%clk 0:01:06]} 34. Kf3 {[%clk 0:01:26]}  Rf6 {[%clk 0:01:06]} 35. Ke3 {[%clk 0:01:26]}  Ke7 {[%clk 0:00:58]} 36. a4 {[%clk 0:01:20]}  Kd6 {[%clk 0:00:58]} 37. h5 {[%clk 0:01:19]}  Rf5 {[%clk 0:00:45]} 38. Rxf5 {[%clk 0:01:15]}  exf5 {[%clk 0:00:45]} 39. Kd3 {[%clk 0:01:10]}  Kc5 {[%clk 0:00:41]} 40. b4+ {[%clk 0:01:08]}  Kc6 {[%clk 0:00:40]} 41. Kd2 {[%clk 0:00:45]}  Re7 {[%clk 0:00:39]} 42. c4 {[%clk 0:00:41]}  dxc4 {[%clk 0:00:37]} 43. Rxc4+ {[%clk 0:00:42]}  Kd6 {[%clk 0:00:36]} 44. Rc8 {[%clk 0:00:33]}  a6 {[%clk 0:00:24]} 45. a5 {[%clk 0:00:31]}  Ke6 {[%clk 0:00:21]} 46. Kd3 {[%clk 0:00:31]}  Rd7+ {[%clk 0:00:20]} 47. Kc4 {[%clk 0:00:31]}  Kd6 {[%clk 0:00:15]} 48. Rh8 {[%clk 0:00:28]}  h6 {[%clk 0:00:10]} 49. Rf8 {[%clk 0:00:27]}  Ke6 {[%clk 0:00:10]} 50. Kc5 {[%clk 0:00:21]}  Rd5+ {[%clk 0:00:08]} 51. Kc4 {[%clk 0:00:20]}  Rb5 {[%clk 0:00:08]} 52. Rg8 {[%clk 0:00:18]}  Kf7 {[%clk 0:00:08]} 53. Rc8 {[%clk 0:00:18]}  Ke7 {[%clk 0:00:09]} 54. Rc7+ {[%clk 0:00:19]}  Kf6 {[%clk 0:00:09]} 55. Rc5 {[%clk 0:00:17]}  Rxc5+ {[%clk 0:00:03]} 56. Kxc5 {[%clk 0:00:16]}  Ke7 {[%clk 0:00:00]} 57. Kb6 {[%clk 0:00:17]} 1-0


[Site "https://www.chess.com"]

[Event "Titled Tuesday Blitz June 20 Late 2023"]
[White "Prieto Aranguren, Alain"]
[Black "ATM622"]
[WhiteFideId "2268906"]
[WhiteElo "2209"]
[BlackElo "2632"]
[Result "0-1"]
[Round "1"]
[TimeControl "180+2"]
[Date "2023.06.20"]
[WhiteClock "0:00:39"]
[BlackClock "0:01:37"]
[Board "132"]

1. d4 {[%clk 0:02:58]}  Nf6 {[%clk 0:02:59]} 2. Bg5 {[%clk 0:02:57]}  Ne4 {[%clk 0:02:58]} 3. Bf4 {[%clk 0:02:57]}  d5 {[%clk 0:02:58]} 4. e3 {[%clk 0:02:57]}  g6 {[%clk 0:02:57]} 5. Bd3 {[%clk 0:02:57]}  Bg7 {[%clk 0:02:55]} 6. Nd2 {[%clk 0:02:56]}  f5 {[%clk 0:02:55]} 7. Ngf3 {[%clk 0:02:54]}  O-O {[%clk 0:02:52]} 8. O-O {[%clk 0:02:52]}  c5 {[%clk 0:02:52]} 9. c4 {[%clk 0:02:50]}  e6 {[%clk 0:02:48]} 10. Rc1 {[%clk 0:02:48]}  cxd4 {[%clk 0:02:46]} 11. exd4 {[%clk 0:02:37]}  Nc6 {[%clk 0:02:44]} 12. Nb3 {[%clk 0:02:21]}  a5 {[%clk 0:02:33]} 13. a4 {[%clk 0:02:10]}  Nb4 {[%clk 0:02:26]} 14. Be2 {[%clk 0:01:51]}  Bd7 {[%clk 0:02:16]} 15. Be5 {[%clk 0:01:50]}  Bxa4 {[%clk 0:02:14]} 16. Bxg7 {[%clk 0:01:47]}  Kxg7 {[%clk 0:02:14]} 17. Ra1 {[%clk 0:01:38]}  Bc6 {[%clk 0:02:07]} 18. c5 {[%clk 0:01:36]}  a4 {[%clk 0:02:04]} 19. Nbd2 {[%clk 0:01:25]}  b6 {[%clk 0:01:58]} 20. cxb6 {[%clk 0:01:24]}  Qxb6 {[%clk 0:01:56]} 21. Re1 {[%clk 0:01:10]}  Rfb8 {[%clk 0:01:50]} 22. Ne5 {[%clk 0:01:06]}  Qxd4 {[%clk 0:01:42]} 23. Ndf3 {[%clk 0:01:05]}  Qxf2+ {[%clk 0:01:39]} 24. Kh1 {[%clk 0:01:05]}  Qe3 {[%clk 0:01:38]} 25. Qc1 {[%clk 0:00:56]}  Nf2+ {[%clk 0:01:37]} 26. Kg1 {[%clk 0:00:39]}  Nh3+ {[%clk 0:01:37]} 0-1


[Site "https://www.chess.com"]

[Event "Titled Tuesday Blitz June 20 Late 2023"]
[White "Jaskolka, Tomasz"]
[Black "Hoffmann, Asa"]
[WhiteFideId "1170791"]
[BlackFideId "2001470"]
[WhiteElo "2155"]
[BlackElo "2117"]
[Result "1-0"]
[Round "1"]
[TimeControl "180+2"]
[Date "2023.06.20"]
[WhiteClock "0:00:06"]
[BlackClock "0:00:00"]
[Board "133"]

1. d4 {[%clk 0:02:58]}  Nf6 {[%clk 0:02:56]} 2. Nc3 {[%clk 0:02:58]}  d6 {[%clk 0:02:53]} 3. e4 {[%clk 0:02:57]}  c6 {[%clk 0:02:47]} 4. Nf3 {[%clk 0:02:51]}  Bg4 {[%clk 0:02:46]} 5. h3 {[%clk 0:02:49]}  Bh5 {[%clk 0:02:41]} 6. Bd3 {[%clk 0:02:40]}  e6 {[%clk 0:02:40]} 7. Be3 {[%clk 0:02:37]}  d5 {[%clk 0:02:39]} 8. e5 {[%clk 0:02:32]}  Nfd7 {[%clk 0:02:38]} 9. Qe2 {[%clk 0:02:25]}  c5 {[%clk 0:02:34]} 10. g4 {[%clk 0:02:08]}  cxd4 {[%clk 0:02:24]} 11. Nxd4 {[%clk 0:02:01]}  Bg6 {[%clk 0:02:23]} 12. f4 {[%clk 0:01:58]}  Bxd3 {[%clk 0:02:18]} 13. cxd3 {[%clk 0:01:52]}  a6 {[%clk 0:02:16]} 14. O-O-O {[%clk 0:01:47]}  Bb4 {[%clk 0:02:12]} 15. f5 {[%clk 0:01:33]}  Bxc3 {[%clk 0:01:58]} 16. bxc3 {[%clk 0:01:33]}  Qa5 {[%clk 0:01:56]} 17. Qb2 {[%clk 0:01:20]}  exf5 {[%clk 0:01:50]} 18. e6 {[%clk 0:01:15]}  Nc5 {[%clk 0:01:38]} 19. exf7+ {[%clk 0:01:14]}  Kxf7 {[%clk 0:01:37]} 20. Rhf1 {[%clk 0:01:06]}  Re8 {[%clk 0:01:30]} 21. Nxf5 {[%clk 0:00:58]}  Kg8 {[%clk 0:01:29]} 22. Bxc5 {[%clk 0:00:35]}  Qxc5 {[%clk 0:01:22]} 23. Qxb7 {[%clk 0:00:35]}  Qxc3+ {[%clk 0:01:18]} 24. Kb1 {[%clk 0:00:33]}  Nd7 {[%clk 0:01:15]} 25. Rc1 {[%clk 0:00:20]}  Rab8 {[%clk 0:00:40]} 26. Rxc3 {[%clk 0:00:20]}  Rxb7+ {[%clk 0:00:39]} 27. Rb3 {[%clk 0:00:14]}  Rxb3+ {[%clk 0:00:35]} 28. axb3 {[%clk 0:00:14]}  Nc5 {[%clk 0:00:33]} 29. Kc2 {[%clk 0:00:13]}  g6 {[%clk 0:00:30]} 30. Nd4 {[%clk 0:00:12]}  Re3 {[%clk 0:00:27]} 31. b4 {[%clk 0:00:10]}  Ne6 {[%clk 0:00:25]} 32. Nxe6 {[%clk 0:00:10]}  Rxe6 {[%clk 0:00:25]} 33. Rf3 {[%clk 0:00:10]}  Rc6+ {[%clk 0:00:23]} 34. Kb3 {[%clk 0:00:11]}  d4 {[%clk 0:00:23]} 35. Rf4 {[%clk 0:00:11]}  Rc3+ {[%clk 0:00:22]} 36. Ka4 {[%clk 0:00:12]}  Rxd3 {[%clk 0:00:23]} 37. h4 {[%clk 0:00:12]}  Rd1 {[%clk 0:00:22]} 38. h5 {[%clk 0:00:12]}  d3 {[%clk 0:00:22]} 39. Rd4 {[%clk 0:00:13]}  d2 {[%clk 0:00:21]} 40. Kb3 {[%clk 0:00:06]}  Rb1+ {[%clk 0:00:16]} 41. Kc2 {[%clk 0:00:06]}  d1=Q+ {[%clk 0:00:14]} 42. Rxd1 {[%clk 0:00:07]}  Rxb4 {[%clk 0:00:14]} 43. Rg1 {[%clk 0:00:08]}  Kg7 {[%clk 0:00:13]} 44. Kc3 {[%clk 0:00:08]}  Rf4 {[%clk 0:00:13]} 45. hxg6 {[%clk 0:00:09]}  Kxg6 {[%clk 0:00:13]} 46. Ra1 {[%clk 0:00:08]}  Rf6 {[%clk 0:00:11]} 47. Kd3 {[%clk 0:00:08]}  Kg5 {[%clk 0:00:11]} 48. Ra4 {[%clk 0:00:09]}  Kh4 {[%clk 0:00:08]} 49. Ke3 {[%clk 0:00:09]}  Rg6 {[%clk 0:00:07]} 50. Kf3 {[%clk 0:00:08]}  Rf6+ {[%clk 0:00:05]} 51. Ke3 {[%clk 0:00:09]}  h6 {[%clk 0:00:05]} 52. Rb4 {[%clk 0:00:07]}  Rc6 {[%clk 0:00:04]} 53. Ra4 {[%clk 0:00:08]}  Kg5 {[%clk 0:00:03]} 54. Kf3 {[%clk 0:00:08]}  Kf6 {[%clk 0:00:03]} 55. Kf4 {[%clk 0:00:08]}  Ke6 {[%clk 0:00:03]} 56. Re4+ {[%clk 0:00:07]}  Kd7 {[%clk 0:00:03]} 57. Ra4 {[%clk 0:00:07]}  Kc7 {[%clk 0:00:03]} 58. Rb4 {[%clk 0:00:07]}  Rb6 {[%clk 0:00:03]} 59. Rc4+ {[%clk 0:00:08]}  Kb7 {[%clk 0:00:03]} 60. Kg3 {[%clk 0:00:08]}  a5 {[%clk 0:00:03]} 61. Rc5 {[%clk 0:00:08]}  Ra6 {[%clk 0:00:03]} 62. Rc3 {[%clk 0:00:07]}  a4 {[%clk 0:00:03]} 63. Ra3 {[%clk 0:00:08]}  Kc6 {[%clk 0:00:03]} 64. Kh4 {[%clk 0:00:07]}  Kc5 {[%clk 0:00:03]} 65. Kh5 {[%clk 0:00:07]}  Kb4 {[%clk 0:00:03]} 66. Ra1 {[%clk 0:00:08]}  a3 {[%clk 0:00:03]} 67. Rb1+ {[%clk 0:00:08]}  Kc3 {[%clk 0:00:03]} 68. Rc1+ {[%clk 0:00:09]}  Kb2 {[%clk 0:00:03]} 69. Rg1 {[%clk 0:00:09]}  a2 {[%clk 0:00:03]} 70. Rg2+ {[%clk 0:00:10]}  Kb3 {[%clk 0:00:03]} 71. Rg3+ {[%clk 0:00:11]}  Kb4 {[%clk 0:00:03]} 72. Rg1 {[%clk 0:00:09]}  Ka3 {[%clk 0:00:02]} 73. Rg3+ {[%clk 0:00:08]}  Kb4 {[%clk 0:00:01]} 74. Rg1 {[%clk 0:00:08]}  Kc3 {[%clk 0:00:00]} 75. Rh1 {[%clk 0:00:06]} 1-0


[Site "https://www.chess.com"]

[Event "Titled Tuesday Blitz June 20 Late 2023"]
[White "Zhukov, Maksim"]
[Black "Koellner, Ruben Gideon"]
[WhiteFideId "34181790"]
[BlackFideId "12993093"]
[WhiteElo "1925"]
[BlackElo "2314"]
[Result "0-1"]
[Round "1"]
[TimeControl "180+2"]
[Date "2023.06.20"]
[WhiteClock "0:01:23"]
[BlackClock "0:02:19"]
[Board "134"]

1. e4 {[%clk 0:02:56]}  d6 {[%clk 0:02:59]} 2. d4 {[%clk 0:02:54]}  Nf6 {[%clk 0:02:59]} 3. f3 {[%clk 0:02:52]}  e5 {[%clk 0:02:59]} 4. dxe5 {[%clk 0:02:52]}  dxe5 {[%clk 0:03:00]} 5. Qxd8+ {[%clk 0:02:51]}  Kxd8 {[%clk 0:03:01]} 6. Bc4 {[%clk 0:02:51]}  Be6 {[%clk 0:02:59]} 7. Bxe6 {[%clk 0:02:51]}  fxe6 {[%clk 0:03:00]} 8. Be3 {[%clk 0:02:50]}  Bd6 {[%clk 0:02:59]} 9. Nd2 {[%clk 0:02:48]}  Ke7 {[%clk 0:03:00]} 10. Ne2 {[%clk 0:02:47]}  Nbd7 {[%clk 0:02:59]} 11. Nc4 {[%clk 0:02:46]}  b5 {[%clk 0:02:53]} 12. Na5 {[%clk 0:02:46]}  Rhc8 {[%clk 0:02:41]} 13. Nc6+ {[%clk 0:02:42]}  Kf7 {[%clk 0:02:40]} 14. Nxa7 {[%clk 0:02:40]}  Rcb8 {[%clk 0:02:36]} 15. Nc6 {[%clk 0:02:33]}  Rc8 {[%clk 0:02:36]} 16. Kf2 {[%clk 0:02:26]}  Ra6 {[%clk 0:02:35]} 17. Na7 {[%clk 0:02:17]}  Rb8 {[%clk 0:02:35]} 18. b3 {[%clk 0:02:05]}  Bc5 {[%clk 0:02:27]} 19. Bxc5 {[%clk 0:01:56]}  Nxc5 {[%clk 0:02:28]} 20. Nxb5 {[%clk 0:01:41]}  Rxb5 {[%clk 0:02:28]} 21. c4 {[%clk 0:01:41]}  Rba5 {[%clk 0:02:23]} 22. b4 {[%clk 0:01:38]}  Nd3+ {[%clk 0:02:23]} 23. Ke3 {[%clk 0:01:37]}  Nxb4 {[%clk 0:02:24]} 24. Rhc1 {[%clk 0:01:33]}  Ra3+ {[%clk 0:02:20]} 25. Rc3 {[%clk 0:01:23]}  Nc2+ {[%clk 0:02:19]} 0-1


[Site "https://www.chess.com"]

[Event "Titled Tuesday Blitz June 20 Late 2023"]
[White "Megalios, Konstantinos"]
[Black "Stanisz, Patryk"]
[WhiteFideId "4238044"]
[BlackFideId "1123106"]
[WhiteElo "2277"]
[BlackElo "2069"]
[Result "1-0"]
[Round "1"]
[TimeControl "180+2"]
[Date "2023.06.20"]
[WhiteClock "0:00:09"]
[BlackClock "0:00:00"]
[Board "137"]

1. Nf3 {[%clk 0:02:55]}  d5 {[%clk 0:02:59]} 2. b3 {[%clk 0:02:55]}  Nf6 {[%clk 0:02:56]} 3. Bb2 {[%clk 0:02:55]}  c5 {[%clk 0:02:55]} 4. e3 {[%clk 0:02:55]}  Nc6 {[%clk 0:02:54]} 5. Bb5 {[%clk 0:02:55]}  Bd7 {[%clk 0:02:51]} 6. O-O {[%clk 0:02:54]}  g6 {[%clk 0:02:49]} 7. Bxf6 {[%clk 0:02:33]}  exf6 {[%clk 0:02:49]} 8. Nc3 {[%clk 0:02:26]}  a6 {[%clk 0:02:45]} 9. Bxc6 {[%clk 0:02:13]}  Bxc6 {[%clk 0:02:46]} 10. d4 {[%clk 0:02:12]}  Qa5 {[%clk 0:02:28]} 11. Ne2 {[%clk 0:02:03]}  Bg7 {[%clk 0:02:13]} 12. c3 {[%clk 0:01:46]}  O-O {[%clk 0:02:04]} 13. a3 {[%clk 0:01:45]}  f5 {[%clk 0:01:42]} 14. b4 {[%clk 0:01:45]}  cxb4 {[%clk 0:01:42]} 15. cxb4 {[%clk 0:01:38]}  Qd8 {[%clk 0:01:19]} 16. a4 {[%clk 0:01:23]}  b6 {[%clk 0:01:03]} 17. Qb3 {[%clk 0:01:16]}  Bb7 {[%clk 0:00:42]} 18. Rac1 {[%clk 0:01:11]}  Qd6 {[%clk 0:00:39]} 19. Nf4 {[%clk 0:01:05]}  Rac8 {[%clk 0:00:37]} 20. a5 {[%clk 0:00:56]}  Rfd8 {[%clk 0:00:33]} 21. Nd3 {[%clk 0:00:55]}  f6 {[%clk 0:00:29]} 22. axb6 {[%clk 0:00:53]}  Qxb6 {[%clk 0:00:26]} 23. Nc5 {[%clk 0:00:53]}  a5 {[%clk 0:00:25]} 24. bxa5 {[%clk 0:00:47]}  Qxb3 {[%clk 0:00:25]} 25. Nxb3 {[%clk 0:00:46]}  Ba6 {[%clk 0:00:26]} 26. Rxc8 {[%clk 0:00:39]}  Rxc8 {[%clk 0:00:26]} 27. Rc1 {[%clk 0:00:40]}  Rxc1+ {[%clk 0:00:25]} 28. Nxc1 {[%clk 0:00:41]}  Bf8 {[%clk 0:00:26]} 29. Nb3 {[%clk 0:00:23]}  Bb4 {[%clk 0:00:25]} 30. Nfd2 {[%clk 0:00:20]}  Kf8 {[%clk 0:00:21]} 31. f4 {[%clk 0:00:17]}  Ke7 {[%clk 0:00:21]} 32. Kf2 {[%clk 0:00:17]}  Kd6 {[%clk 0:00:21]} 33. h3 {[%clk 0:00:15]}  Bc4 {[%clk 0:00:14]} 34. g4 {[%clk 0:00:12]}  fxg4 {[%clk 0:00:12]} 35. hxg4 {[%clk 0:00:13]}  Ba6 {[%clk 0:00:11]} 36. Kf3 {[%clk 0:00:12]}  Bd3 {[%clk 0:00:10]} 37. g5 {[%clk 0:00:11]}  fxg5 {[%clk 0:00:08]} 38. fxg5 {[%clk 0:00:12]}  Kc6 {[%clk 0:00:06]} 39. Kf4 {[%clk 0:00:12]}  Bd6+ {[%clk 0:00:01]} 40. Kf3 {[%clk 0:00:10]}  Bb4 {[%clk 0:00:00]} 41. Kf4 {[%clk 0:00:09]} 1-0


[Site "https://www.chess.com"]

[Event "Titled Tuesday Blitz June 20 Late 2023"]
[White "Bernabeu Lopez, Carlos Javier"]
[Black "Gerbelli Neto, Eduardo"]
[WhiteFideId "2235366"]
[BlackFideId "2103281"]
[WhiteElo "2344"]
[BlackElo "2178"]
[Result "1-0"]
[Round "1"]
[TimeControl "180+2"]
[Date "2023.06.20"]
[WhiteClock "0:02:29"]
[BlackClock "0:01:51"]
[Board "139"]

1. Nf3 {[%clk 0:02:56]}  Nf6 {[%clk 0:02:59]} 2. d4 {[%clk 0:02:57]}  d5 {[%clk 0:02:59]} 3. g3 {[%clk 0:02:56]}  e6 {[%clk 0:02:57]} 4. Bg2 {[%clk 0:02:57]}  b5 {[%clk 0:02:58]} 5. O-O {[%clk 0:02:58]}  Bb7 {[%clk 0:02:58]} 6. a4 {[%clk 0:02:58]}  b4 {[%clk 0:02:58]} 7. c4 {[%clk 0:02:59]}  dxc4 {[%clk 0:02:56]} 8. Nbd2 {[%clk 0:02:59]}  c5 {[%clk 0:02:51]} 9. Nxc4 {[%clk 0:02:58]}  Nbd7 {[%clk 0:02:50]} 10. Be3 {[%clk 0:02:57]}  a5 {[%clk 0:02:43]} 11. Rc1 {[%clk 0:02:49]}  cxd4 {[%clk 0:02:39]} 12. Nxd4 {[%clk 0:02:50]}  Bxg2 {[%clk 0:02:38]} 13. Kxg2 {[%clk 0:02:50]}  Nd5 {[%clk 0:02:36]} 14. Bd2 {[%clk 0:02:45]}  Qf6 {[%clk 0:02:15]} 15. Nf3 {[%clk 0:02:37]}  Be7 {[%clk 0:02:05]} 16. e4 {[%clk 0:02:31]}  N5b6 {[%clk 0:02:04]} 17. Bg5 {[%clk 0:02:31]}  Qg6 {[%clk 0:01:58]} 18. Bxe7 {[%clk 0:02:30]}  Kxe7 {[%clk 0:01:51]} 19. Qd6+ {[%clk 0:02:29]} 1-0


[Site "https://www.chess.com"]

[Event "Titled Tuesday Blitz June 20 Late 2023"]
[White "Principe, Gerson"]
[Black "Rodriguez Polo, Mateo"]
[WhiteFideId "3804550"]
[BlackFideId "24509396"]
[WhiteElo "2229"]
[BlackElo "2117"]
[Result "1-0"]
[Round "1"]
[TimeControl "180+2"]
[Date "2023.06.20"]
[WhiteClock "0:01:40"]
[BlackClock "0:00:00"]
[Board "141"]

1. Nf3 {[%clk 0:02:59]}  c5 {[%clk 0:02:50]} 2. e3 {[%clk 0:02:58]}  g6 {[%clk 0:02:16]} 3. d4 {[%clk 0:02:57]}  cxd4 {[%clk 0:02:07]} 4. exd4 {[%clk 0:02:56]}  Bg7 {[%clk 0:01:52]} 5. Bd3 {[%clk 0:02:55]}  Nf6 {[%clk 0:01:50]} 6. O-O {[%clk 0:02:55]}  O-O {[%clk 0:01:50]} 7. Bg5 {[%clk 0:02:56]}  d5 {[%clk 0:01:42]} 8. c3 {[%clk 0:02:54]}  Nc6 {[%clk 0:01:32]} 9. Nbd2 {[%clk 0:02:52]}  Bg4 {[%clk 0:01:24]} 10. h3 {[%clk 0:02:51]}  Bxf3 {[%clk 0:01:21]} 11. Nxf3 {[%clk 0:02:51]}  h6 {[%clk 0:01:21]} 12. Bh4 {[%clk 0:02:49]}  Ne4 {[%clk 0:01:09]} 13. Bxe4 {[%clk 0:02:33]}  dxe4 {[%clk 0:01:05]} 14. Nd2 {[%clk 0:02:34]}  Qd5 {[%clk 0:01:00]} 15. Qb3 {[%clk 0:02:26]}  Qxb3 {[%clk 0:00:56]} 16. axb3 {[%clk 0:02:25]}  f5 {[%clk 0:00:49]} 17. f4 {[%clk 0:02:19]}  e6 {[%clk 0:00:45]} 18. b4 {[%clk 0:02:14]}  a6 {[%clk 0:00:44]} 19. Nc4 {[%clk 0:02:14]}  Rfc8 {[%clk 0:00:39]} 20. Nb6 {[%clk 0:02:13]}  Rab8 {[%clk 0:00:39]} 21. Nxc8 {[%clk 0:02:13]}  Rxc8 {[%clk 0:00:40]} 22. Bf2 {[%clk 0:02:11]}  Ne7 {[%clk 0:00:35]} 23. g3 {[%clk 0:02:09]}  Nd5 {[%clk 0:00:36]} 24. Rfe1 {[%clk 0:02:10]}  Kf7 {[%clk 0:00:32]} 25. Ra5 {[%clk 0:02:08]}  Ke8 {[%clk 0:00:31]} 26. Rc5 {[%clk 0:02:08]}  Kd7 {[%clk 0:00:28]} 27. Rxc8 {[%clk 0:01:58]}  Kxc8 {[%clk 0:00:29]} 28. Be3 {[%clk 0:01:58]}  Kc7 {[%clk 0:00:27]} 29. Kf2 {[%clk 0:01:59]}  Kc6 {[%clk 0:00:25]} 30. Ke2 {[%clk 0:01:59]}  Kb5 {[%clk 0:00:25]} 31. Kd2 {[%clk 0:02:00]}  Nb6 {[%clk 0:00:16]} 32. b3 {[%clk 0:01:58]}  Kc6 {[%clk 0:00:15]} 33. Ra1 {[%clk 0:01:58]}  Nd5 {[%clk 0:00:15]} 34. Ra5 {[%clk 0:01:57]}  Nc7 {[%clk 0:00:14]} 35. c4 {[%clk 0:01:54]}  Bf8 {[%clk 0:00:13]} 36. Kc3 {[%clk 0:01:51]}  b6 {[%clk 0:00:10]} 37. Ra1 {[%clk 0:01:46]}  Kb7 {[%clk 0:00:10]} 38. g4 {[%clk 0:01:43]}  b5 {[%clk 0:00:08]} 39. Rg1 {[%clk 0:01:41]}  Ne8 {[%clk 0:00:00]} 40. gxf5 {[%clk 0:01:40]} 1-0


[Site "https://www.chess.com"]

[Event "Titled Tuesday Blitz June 20 Late 2023"]
[White "Vifleemskaia, Svetlana"]
[Black "Rostomyan, Mikayel"]
[WhiteFideId "4129490"]
[BlackFideId "13313754"]
[WhiteElo "1930"]
[BlackElo "2061"]
[Result "0-1"]
[Round "1"]
[TimeControl "180+2"]
[Date "2023.06.20"]
[WhiteClock "0:00:00"]
[BlackClock "0:00:21"]
[Board "144"]

1. d4 {[%clk 0:02:51]}  d5 {[%clk 0:02:59]} 2. c4 {[%clk 0:02:51]}  e5 {[%clk 0:02:59]} 3. dxe5 {[%clk 0:02:51]}  Ne7 {[%clk 0:02:59]} 4. Nf3 {[%clk 0:02:48]}  Nbc6 {[%clk 0:02:56]} 5. cxd5 {[%clk 0:02:45]}  Qxd5 {[%clk 0:02:55]} 6. Qxd5 {[%clk 0:02:43]}  Nxd5 {[%clk 0:02:56]} 7. a3 {[%clk 0:02:43]}  h6 {[%clk 0:02:54]} 8. e4 {[%clk 0:02:36]}  Nb6 {[%clk 0:02:54]} 9. Nc3 {[%clk 0:02:33]}  Be6 {[%clk 0:02:54]} 10. Bf4 {[%clk 0:02:27]}  g5 {[%clk 0:02:47]} 11. Bg3 {[%clk 0:02:27]}  O-O-O {[%clk 0:02:46]} 12. Bb5 {[%clk 0:02:21]}  Bc4 {[%clk 0:02:37]} 13. Bxc4 {[%clk 0:01:53]}  Nxc4 {[%clk 0:02:35]} 14. b3 {[%clk 0:01:46]}  Nxa3 {[%clk 0:02:34]} 15. O-O {[%clk 0:01:44]}  Nc2 {[%clk 0:02:33]} 16. Rad1 {[%clk 0:01:35]}  Bg7 {[%clk 0:02:31]} 17. Nd5 {[%clk 0:01:29]}  g4 {[%clk 0:02:18]} 18. Nh4 {[%clk 0:01:27]}  Bxe5 {[%clk 0:02:14]} 19. Bxe5 {[%clk 0:01:24]}  Nxe5 {[%clk 0:02:14]} 20. Rc1 {[%clk 0:01:23]}  Rxd5 {[%clk 0:01:53]} 21. exd5 {[%clk 0:01:19]}  Nd4 {[%clk 0:01:53]} 22. Rcd1 {[%clk 0:01:11]}  Nxb3 {[%clk 0:01:51]} 23. d6 {[%clk 0:01:06]}  c5 {[%clk 0:01:25]} 24. Rfe1 {[%clk 0:01:02]}  f6 {[%clk 0:01:19]} 25. f4 {[%clk 0:01:00]}  gxf3 {[%clk 0:01:10]} 26. Nxf3 {[%clk 0:00:52]}  Nxf3+ {[%clk 0:00:57]} 27. gxf3 {[%clk 0:00:53]}  Nd4 {[%clk 0:00:57]} 28. Kf2 {[%clk 0:00:53]}  Kd7 {[%clk 0:00:55]} 29. Re7+ {[%clk 0:00:51]}  Kc6 {[%clk 0:00:54]} 30. Rc7+ {[%clk 0:00:49]}  Kxd6 {[%clk 0:00:52]} 31. Rxb7 {[%clk 0:00:49]}  Re8 {[%clk 0:00:36]} 32. Rxa7 {[%clk 0:00:40]}  Re2+ {[%clk 0:00:36]} 33. Kg3 {[%clk 0:00:40]}  Re3 {[%clk 0:00:32]} 34. Ra6+ {[%clk 0:00:35]}  Ke5 {[%clk 0:00:28]} 35. Rf1 {[%clk 0:00:18]}  c4 {[%clk 0:00:29]} 36. Ra5+ {[%clk 0:00:14]}  Ke6 {[%clk 0:00:29]} 37. Rc5 {[%clk 0:00:12]}  c3 {[%clk 0:00:24]} 38. Kf4 {[%clk 0:00:06]}  Re5 {[%clk 0:00:20]} 39. Rxe5+ {[%clk 0:00:03]}  fxe5+ {[%clk 0:00:21]} 40. Ke4 {[%clk 0:00:00]}  c2 {[%clk 0:00:21]} 0-1


[Site "https://www.chess.com"]

[Event "Titled Tuesday Blitz June 20 Late 2023"]
[White "Ardila, Oscar Humberto"]
[Black "ArtemDyachuk"]
[WhiteFideId "4404742"]
[WhiteElo "1912"]
[BlackElo "2607"]
[Result "0-1"]
[Round "1"]
[TimeControl "180+2"]
[Date "2023.06.20"]
[WhiteClock "0:00:18"]
[BlackClock "0:00:58"]
[Board "146"]

1. d4 {[%clk 0:02:39]}  Nf6 {[%clk 0:02:58]} 2. c4 {[%clk 0:01:42]}  e6 {[%clk 0:02:56]} 3. Nc3 {[%clk 0:01:42]}  c5 {[%clk 0:02:55]} 4. dxc5 {[%clk 0:01:42]}  Bxc5 {[%clk 0:02:55]} 5. Nf3 {[%clk 0:01:43]}  O-O {[%clk 0:02:54]} 6. e3 {[%clk 0:01:43]}  b6 {[%clk 0:02:55]} 7. Be2 {[%clk 0:01:43]}  Bb7 {[%clk 0:02:55]} 8. O-O {[%clk 0:01:43]}  d5 {[%clk 0:02:52]} 9. cxd5 {[%clk 0:01:43]}  exd5 {[%clk 0:02:51]} 10. Bd2 {[%clk 0:01:43]}  Nc6 {[%clk 0:02:50]} 11. Rc1 {[%clk 0:01:36]}  d4 {[%clk 0:02:50]} 12. exd4 {[%clk 0:01:33]}  Nxd4 {[%clk 0:02:49]} 13. Nxd4 {[%clk 0:01:33]}  Bxd4 {[%clk 0:02:48]} 14. Bg5 {[%clk 0:01:31]}  h6 {[%clk 0:02:44]} 15. Bh4 {[%clk 0:01:31]}  Re8 {[%clk 0:02:38]} 16. Bf3 {[%clk 0:01:28]}  Bxf3 {[%clk 0:02:31]} 17. Qxf3 {[%clk 0:01:22]}  Bxc3 {[%clk 0:02:14]} 18. Rxc3 {[%clk 0:01:17]}  g5 {[%clk 0:02:14]} 19. Bg3 {[%clk 0:01:16]}  Ne4 {[%clk 0:02:13]} 20. Rd3 {[%clk 0:01:12]}  Qe7 {[%clk 0:02:09]} 21. Qh5 {[%clk 0:01:00]}  Qe6 {[%clk 0:02:05]} 22. h4 {[%clk 0:00:57]}  Kg7 {[%clk 0:01:39]} 23. Rf3 {[%clk 0:00:54]}  Nf6 {[%clk 0:01:36]} 24. Rxf6 {[%clk 0:00:52]}  Qxf6 {[%clk 0:01:37]} 25. hxg5 {[%clk 0:00:52]}  hxg5 {[%clk 0:01:37]} 26. Rd1 {[%clk 0:00:41]}  Rad8 {[%clk 0:01:23]} 27. Rc1 {[%clk 0:00:35]}  Rd2 {[%clk 0:01:15]} 28. Qg4 {[%clk 0:00:26]}  Rde2 {[%clk 0:01:14]} 29. Rf1 {[%clk 0:00:24]}  Re1 {[%clk 0:01:12]} 30. Bh4 {[%clk 0:00:20]}  Rxf1+ {[%clk 0:01:11]} 31. Kxf1 {[%clk 0:00:20]}  Qe5 {[%clk 0:01:05]} 32. g3 {[%clk 0:00:18]}  Kg6 {[%clk 0:01:00]} 33. f4 {[%clk 0:00:17]}  Qe1+ {[%clk 0:00:57]} 34. Kg2 {[%clk 0:00:17]}  Re2+ {[%clk 0:00:57]} 35. Kf3 {[%clk 0:00:18]}  Qf1# {[%clk 0:00:58]} 0-1


[Site "https://www.chess.com"]